[Event "NY Presidents Day GM-A 2024"]
[Site "New York"]
[Date "2024.02.20"]
[Round "9.5"]
[White "Lenderman, Aleksandr"]
[Black "Eidelman, Gabriel"]
[Result "1-0"]
[ECO "A13"]
[WhiteElo "2521"]
[BlackElo "2343"]
[Annotator "TA"]
[PlyCount "73"]
[EventDate "2024.02.14"]
[EventType "tourn"]
[EventCountry "USA"]
[SourceTitle "playchess.com"]
[Source "ChessBase"]
[SourceQuality "1"]
[TimeControl "5400+30"]

{[%evp 11,73,8,24,16,24,29,19,27,3,0,0,0,5,0,-2,0,0,-16,-9,-5,0,-2,0,0,0,0,0,0,0,0,8,0,94,68,76,79,66,58,61,54,250,257,306,305,387,341,386,236,482,470,461,464,493,486,471,456,477,475,494,475,1236,1254,1198,1139]} 1. c4 {[%emt 0:00:02]} e6 {[%emt 0:00:05]} 2. Nf3 {[%emt 0:01:39]} Nf6 {[%emt 0:00:12]} 3. Nc3 {[%emt 0:00:17]} d5 {[%emt 0:00:13]} 4. e3 {[%emt 0:00:05]} Be7 {[%emt 0:00:14]} 5. b3 {[%emt 0:00:06]} O-O {[%emt 0:00:08]} 6. Bb2 {[%emt 0:00:03]} b6 {[%emt 0:00:09]} 7. cxd5 {[%emt 0:00:15]} exd5 {[%emt 0:00:08]} 8. d4 {[%emt 0:00:19]} Bd6 {[%emt 0:00:50]} 9. Bd3 {[%emt 0:00:36] The position is equal.} Re8 {[%emt 0:00:40]} 10. O-O {[%emt 0:00:46]} a6 {[%emt 0:00:28]} 11. Rc1 {[%emt 0:00:58]} Nbd7 {[%emt 0:01:17] Wards off Ne5} 12. Ne2 {[%emt 0:00:28]} Bb7 {[%emt 0:00:08]} 13. Ng3 {[%emt 0:00:16]} g6 {[%emt 0:00:10]} 14. Qc2 {[%emt 0:01:05]} Rc8 {[%emt 0:00:38]} 15. Qe2 {[%emt 0:00:26]} Ra8 {[%emt 0:01:12]} 16. Rc2 {[%emt 0:00:37]} Qe7 {[%emt 0:03:52]} 17. Rfc1 {[%emt 0:01:03][%cal Of3e5]} c6 {[%emt 0:00:08]} 18. Qd1 {[%emt 0:05:47]} a5 {[%emt 0:04:12]} 19. a4 {[%emt 0:02:07]} Ne4 {[%emt 0:08:50]} 20. Bxe4 {[%emt 0:00:51]} dxe4 {[%emt 0:00:08]} 21. Nd2 {[%emt 0:00:13]} Qh4 {[%emt 0:05:24]} (21... f5 $11 {remains equal.}) 22. Nc4 {[%emt 0:01:02]} Bf8 {[%emt 0:25:59] [#]} 23. d5 $1 {[%emt 0:02:54]} c5 {[%emt 0:00:06]} (23... cxd5 $2 {perishes.} 24. Nxb6 (24. Qd4 Qf6 $14) 24... Nxb6 25. Qd4 $18) 24. f3 {[%emt 0:04:42]} exf3 {[%emt 0:08:52]} 25. Qxf3 {[%emt 0:00:33]} Be7 $2 {[%emt 0:05:17] This costs Black the game.} ({Better is} 25... Bh6 $14) 26. Rf2 $40 {[%emt 0:03:57][%mdl 128] White wants a kill.} f6 {[%emt 0:00:43]} 27. e4 {[%emt 0:01:05]} Rf8 {[%emt 0:03:18][%cal Od7e5]} 28. Rcf1 {[%emt 0:13:37][%cal Og3f5]} Rae8 {[%emt 0:03:25]} 29. Qd3 {[%emt 0:05:22]} Ba6 $2 {[%emt 0:09:29]} (29... Qh6 30. Rf3 Kh8) 30. d6 {[%emt 0:01:15] White is clearly winning.} Bd8 {[%emt 0:00:06]} 31. Qd5+ {[%emt 0:00:29]} Rf7 {[%emt 0:02:01]} 32. Rf4 {[%emt 0:02:10]} Qh6 {[%emt 0:00:08]} 33. e5 {[%emt 0:01:31] Hoping for e6.} Bxc4 {[%emt 0:03:49]} 34. bxc4 {[%emt 0:00:11]} ({Weaker is} 34. Qxc4 Nxe5 35. Qd5 Nd7 $16) 34... Nxe5 {[%emt 0:00:08]} 35. Ne4 {[%emt 0:04:31]} Kg7 {[%emt 0:05:49]} (35... Ng4 $142 36. Rxg4 Qe3+ 37. Nf2 Qe2) 36. h4 {[%emt 0:01:04][%cal Oe4g5] Threatens to win with Ng5!} Qh5 {[%emt 0:04:16] [#]} 37. Ng5 $1 {[%emt 0:01:43][%mdl 512] Weighted Error Value: White=0.12 (very precise) /Black=0.40.  Loses game:     	---       	Black=1      Mistake:       	---       	Black=3      Inaccurate:     	White=1     	---        OK:         	White=14    	Black=16     Best:        	White=3     	Black=2} 1-0